bitfinex-derivatives/quotes_BNBF0:USTF0_20250708
["timestamp","ask_amount","ask_price","bid_price","bid_amount"]
[1751980404359,1.69838257,661.04,660.69,1.788]
[1751980408057,1.69838257,661.03,660.69,1.788]
[1751980408558,1.69838257,661.04,660.69,1.788]
[1751980411461,1.69838257,661.05,660.69,1.788]
[1751980415263,0.2633421,661.02,660.69,1.788]
[1751980422465,0.2633421,661.02,660.52,1.69899793]
[1751980425465,0.2633421,661.02,660.51,1.69899793]
[1751980425763,0.2633421,661.02,660.25,0.26333712]
[1751980425764,0.2633421,661.02,660.53,1.353]
[1751980431170,1.69838257,661.01,660.53,1.353]
[1751980431366,0.2633421,661.02,660.53,1.353]
[1751980436269,1.69838257,660.97,660.53,1.353]
[1751980437077,1.69838257,660.96,660.53,1.353]
[1751980437772,1.69838257,660.95,660.53,1.353]
[1751980439274,1.69838257,660.96,660.53,1.353]
[1751980439874,1.69838257,660.93,660.53,1.353]
[1751980440672,1.69838257,660.91,660.53,1.353]
[1751980442581,1.69838257,660.91,660.27,1.69899793]
[1751980442979,1.69838257,660.91,660.28,1.69899793]
[1751980444082,1.69838257,660.92,660.27,1.69899793]
[1751980444283,1.69838257,660.92,660.26,1.69899793]
[1751980444980,1.69838257,660.92,660.27,1.69899793]
[1751980446281,1.69838257,660.93,660.26,1.69899793]
[1751980446483,1.69838257,660.93,660.27,1.69899793]
[1751980446685,1.69838257,660.93,660.27,3.49699793]
[1751980446885,1.69838257,660.92,660.27,1.798]
[1751980449683,1.69838257,660.92,660.27,3.49699793]
[1751980450489,1.69838257,660.92,660.27,1.798]
[1751980451087,1.69838257,660.94,660.27,1.798]
[1751980452186,1.69838257,660.95,660.27,1.798]
[1751980455894,1.69838257,660.96,660.27,1.798]
[1751980461005,1.69838257,660.95,660.27,1.798]
[1751980462904,1.69838257,660.94,660.27,1.798]
[1751980465806,1.69838257,660.93,660.26,1.69899793]
[1751980466902,1.69838257,660.92,660.26,1.69899793]
[1751980467107,1.69838257,660.92,660.27,1.69899793]
[1751980467507,1.69838257,660.95,660.23,1.69899793]
[1751980468007,1.69838257,660.95,660.24,1.827]
[1751980468404,1.69838257,660.94,660.24,1.827]
[1751980469408,1.69838257,660.94,660.24,3.52599793]
[1751980470206,1.69838257,660.95,660.24,1.827]
[1751980473309,1.69838257,660.94,660.24,1.827]
[1751980473711,1.69838257,660.95,660.24,1.827]
[1751980474310,1.69838257,660.94,660.24,1.827]
[1751980476808,0.2633421,661.02,660.27,1.69899793]
[1751980477113,0.2633421,661.02,660.29,1.69899793]
[1751980478513,1.96172467,661.02,660.3,1.69899793]
[1751980480510,1.69838257,661.01,660.3,1.69899793]
[1751980481314,1.69838257,661.01,660.31,1.69899793]
[1751980482211,1.69838257,661.0,660.31,1.69899793]
[1751980482415,1.69838257,661.0,660.32,1.69899793]
[1751980483416,1.69838257,660.99,660.33,1.69899793]
[1751980485517,1.69838257,660.98,660.34,1.69899793]
[1751980486313,1.69838257,660.97,660.35,1.69899793]
[1751980488920,0.2633421,661.02,660.24,1.827]
[1751980494123,0.2633421,661.02,660.14,0.26337299]
[1751980497025,0.2633421,661.02,660.15,1.844]
[1751980510549,1.69851973,660.9,660.45,1.6998928]
[1751980511348,1.69851973,660.9,660.44,1.6998928]
[1751980511848,1.69851973,660.9,660.45,1.6998928]
[1751980512148,1.69851973,660.9,660.44,1.6998928]
[1751980512445,1.69851973,660.91,660.43,1.6998928]
[1751980513348,1.69851973,660.9,660.43,1.6998928]
[1751980514044,1.69851973,660.91,660.43,1.6998928]
[1751980514244,1.69851973,660.9,660.43,1.6998928]
[1751980517245,1.69851973,660.91,660.43,1.6998928]
[1751980518252,1.69851973,660.9,660.43,1.6998928]
[1751980521246,1.69851973,660.9,660.44,1.6998928]
[1751980521553,1.69851973,661.0,660.29,1.6998928]
[1751980522350,1.69851973,660.99,660.29,1.6998928]
[1751980522552,1.96186183,661.02,660.32,1.6998928]
[1751980526248,1.69851973,661.01,660.32,1.6998928]
[1751980528253,1.69851973,661.01,660.33,1.6998928]
[1751980531158,1.69851973,661.0,660.33,1.6998928]
[1751980531558,1.69851973,660.92,660.45,1.6998928]
[1751980532058,1.69851973,660.92,660.46,1.445]
[1751980533259,1.69851973,660.92,660.46,3.1448928]
[1751980534360,1.69851973,660.91,660.46,3.1448928]
[1751980535359,1.69851973,660.91,660.47,1.6998928]
[1751980536156,1.69851973,660.9,660.48,1.6998928]
[1751980538261,1.69851973,660.87,660.53,1.6998928]
[1751980538456,1.69851973,660.87,660.52,1.6998928]
[1751980541266,1.69851973,660.88,660.5,1.6998928]
[1751980541565,1.69851973,660.88,660.46,1.445]
[1751980550472,1.69851973,660.93,660.46,1.445]
[1751980551072,1.69851973,660.93,660.36,1.6998928]
[1751980551469,1.69851973,660.93,660.37,1.6998928]
[1751980552269,1.69851973,660.92,660.37,1.6998928]
[1751980554272,1.69851973,660.93,660.37,1.6998928]
[1751980554569,1.69851973,660.92,660.38,3.3788928]
[1751980555877,1.69851973,660.97,660.38,1.679]
[1751980556174,1.69851973,660.98,660.38,1.679]
[1751980558681,1.69851973,660.96,660.38,1.679]
[1751980563279,1.69851973,660.95,660.38,1.679]
[1751980594707,1.69851973,660.87,660.44,1.6998928]
[1751980598410,1.69851973,660.86,660.44,1.6998928]
[1751980599209,1.69851973,660.86,660.45,1.6998928]
[1751980599710,1.69851973,660.86,660.44,1.6998928]
[1751980599910,1.69851973,660.85,660.46,1.6998928]
[1751980600606,1.69851973,660.85,660.47,1.6998928]
[1751980601206,1.69851973,660.84,660.47,1.6998928]
[1751980606712,1.96193259,660.85,660.47,1.6998928]
[1751980607016,1.96193259,660.85,660.46,1.6998928]
[1751980607217,1.69851973,660.84,660.47,1.6998928]
[1751980608916,1.96193259,660.85,660.48,1.603]
[1751980609417,1.69851973,660.84,660.48,1.603]
[1751980609712,1.96193259,660.85,660.48,1.603]
[1751980616621,1.69851973,660.84,660.48,1.603]
[1751980616818,1.96193259,660.85,660.48,1.603]
[1751980618716,1.69851973,660.84,660.48,1.603]
[1751980619020,0.26341286,660.85,660.48,1.603]
[1751980619021,1.96193259,660.85,660.48,1.603]
[1751980619721,1.69851973,660.84,660.48,1.603]
[1751980622925,1.69851973,660.8,660.48,1.603]
[1751980623224,0.26341286,660.85,660.48,1.603]
[1751980623225,1.69851973,660.81,660.48,1.603]
[1751980625821,0.26341286,660.85,660.48,1.603]
[1751980626026,1.70054345,660.81,660.48,1.603]
[1751980626522,1.70054345,660.82,660.48,1.603]
[1751980635835,1.70054345,660.82,660.38,1.70229747]
[1751980637734,1.70054345,660.82,660.39,1.70229747]
[1751980637938,1.70054345,660.82,660.38,1.70229747]
[1751980638136,1.70054345,660.82,660.4,1.562]
[1751980640034,1.70054345,660.81,660.4,1.562]
[1751980642436,1.70054345,660.81,660.4,3.26429747]
[1751980645036,1.70054345,660.8,660.41,1.70229747]
[1751980646847,1.70054345,660.81,660.4,3.26429747]
[1751980648349,1.70054345,660.8,660.41,1.70229747]
[1751980652147,1.70054345,660.81,660.4,1.562]
[1751980655952,1.70054345,660.84,660.4,1.562]
[1751980662053,1.70054345,660.83,660.4,1.562]
[1751980665757,1.70054345,660.8,660.4,3.26429747]
[1751980667558,1.70054345,660.81,660.4,1.562]
[1751980670162,1.70054345,660.81,660.4,3.26429747]
[1751980670560,1.70054345,660.8,660.4,3.26429747]
[1751980672163,1.70054345,660.8,660.41,1.70229747]
[1751980674865,1.70054345,660.79,660.42,1.70229747]
[1751980676266,1.70054345,660.78,660.43,1.70229747]
[1751980678972,1.70054345,660.84,660.4,1.562]
[1751980682273,1.70054345,660.83,660.4,1.562]
[1751980683871,1.70054345,660.82,660.4,1.562]
[1751980684071,1.70054345,660.83,660.4,1.562]
[1751980684770,1.70054345,660.84,660.4,1.562]
[1751980688779,1.70054345,660.8,660.4,3.26429747]
[1751980689275,1.70054345,660.8,660.41,1.70229747]
[1751980689576,1.70054345,660.8,660.4,3.26429747]
[1751980690178,1.70054345,660.8,660.4,1.70229747]
[1751980690479,1.70054345,660.81,660.4,1.70229747]
[1751980692678,1.70054345,660.82,660.41,1.822]
[1751980696683,1.70054345,660.81,660.41,1.822]
[1751980697280,1.70054345,660.82,660.41,1.822]
[1751980697981,1.70054345,660.81,660.41,1.822]
[1751980700284,1.70054345,660.82,660.41,1.822]
[1751980700681,1.70054345,660.8,660.41,3.52429747]
[1751980701384,1.70054345,660.81,660.41,1.822]
[1751980701582,1.70054345,660.82,660.41,1.822]
[1751980702587,1.70054345,660.81,660.41,1.822]
[1751980706188,1.70054345,660.82,660.41,1.822]
[1751980706586,0.26341286,660.85,660.41,1.822]
[1751980716691,1.96395631,660.85,660.41,3.52429747]
[1751980717491,1.70054345,660.84,660.42,1.70229747]
[1751980718095,1.70054345,660.84,660.43,1.70229747]
[1751980718296,1.70054345,660.84,660.42,1.70229747]
[1751980719494,1.96395631,660.85,660.42,1.70229747]
[1751980721001,1.70054345,660.82,660.46,1.70229747]
[1751980721803,1.70054345,660.82,660.44,1.70229747]
[1751980722009,1.70054345,660.84,660.44,1.70229747]
[1751980722204,0.26341286,660.85,660.41,1.822]
[1751980722205,1.96395631,660.85,660.42,1.70229747]
[1751980729420,1.96240938,660.85,660.42,1.70199846]
[1751980731922,1.69899652,660.84,660.43,1.70199846]
[1751980732318,1.69899652,660.82,660.46,1.70199846]
[1751980733926,0.26341286,660.85,660.41,1.822]
[1751980735726,0.26341286,660.85,660.38,1.70199846]
[1751980739624,0.26341286,660.85,660.39,1.748]
[1751980743728,0.26341286,660.85,660.41,1.70199846]
[1751980743932,0.26341286,660.85,660.42,1.70199846]
[1751980744432,0.26341286,660.85,660.41,1.70199846]
[1751980745635,0.26341286,660.85,660.43,1.70199846]
[1751980747631,1.96240938,660.85,660.44,1.70199846]
[1751980748836,1.96240938,660.85,660.43,1.70199846]
[1751980748837,0.26341286,660.85,660.43,1.70199846]
[1751980750335,0.26341286,660.85,660.39,1.748]
[1751980763646,0.26341286,660.85,660.42,1.70199846]
[1751980765748,1.69899652,660.84,660.46,1.70199846]
[1751980766450,1.69899652,660.83,660.46,1.70199846]
[1751980767847,1.69899652,660.84,660.45,1.70199846]
[1751980768048,1.69899652,660.84,660.44,1.70199846]
[1751980769552,1.69899652,660.84,660.45,1.70199846]
[1751980770751,1.69899652,660.83,660.46,1.70199846]
[1751980773658,1.69899652,660.84,660.45,1.70199846]
[1751980777663,1.69899652,660.83,660.46,1.70199846]
[1751980778066,1.69899652,660.83,660.47,1.70199846]
[1751980780462,1.69899652,660.82,660.47,1.70199846]
[1751980782161,1.69899652,660.83,660.47,1.70199846]
[1751980782565,1.96240938,660.85,660.44,1.70199846]
[1751980783465,1.69899652,660.84,660.45,1.70199846]
[1751980784461,1.96240938,660.85,660.44,1.70199846]
[1751980784766,0.26341286,660.85,660.42,1.70199846]
[1751980789268,0.26341286,660.85,660.27,2.26652374]
[1751980789775,0.26341286,660.85,660.42,1.70279657]
[1751980792572,0.26341286,660.85,660.28,1.795]
[1751980792573,1.96352179,660.85,660.44,1.70279657]
[1751980794175,1.70010893,660.84,660.44,1.70279657]
[1751980794373,1.70010893,660.82,660.47,1.70279657]
[1751980795374,1.70010893,660.82,660.48,1.70279657]
[1751980796779,1.70010893,660.81,660.49,1.70279657]
[1751980804979,0.98971701,660.84,660.39,2.27039542]
[1751980805183,0.98971701,660.84,660.28,5.19478561]
[1751980805184,0.98971701,660.84,660.28,1.795]
[1751980806481,0.26341286,660.85,660.28,1.795]
[1751980823894,0.26341286,660.85,660.18,0.26341984]
[1751980827896,0.26341286,660.85,660.19,1.457]
[1751980857324,0.26341286,660.85,660.48,1.70162416]
[1751980857521,0.26341286,660.85,660.47,1.70162416]
[1751980858524,0.26341286,660.85,660.5,1.70162416]
[1751980860220,0.26341286,660.85,660.41,1.70162416]
[1751980860920,0.26341286,660.85,660.4,1.70162416]
[1751980861224,0.26341286,660.85,660.41,1.70162416]
[1751980861420,0.26341286,660.85,660.42,1.70162416]
[1751980867327,0.26341286,660.85,660.39,1.70162416]
[1751980870033,0.26341286,660.85,660.42,1.70162416]
[1751980870231,0.26341286,660.85,660.41,1.70162416]
[1751980871333,0.26338196,660.92,660.41,1.70162416]
[1751980872732,0.26338196,660.92,660.42,1.70162416]
[1751980874133,0.26338196,660.92,660.43,1.70162416]
[1751980874337,1.70062138,661.06,660.51,1.70162416]
[1751980874634,0.26336701,660.99,660.51,1.70162416]
[1751980875038,0.26336701,660.99,660.52,1.70162416]
[1751980875237,0.26336701,660.99,660.54,1.70162416]
[1751980877236,0.26336701,660.99,660.53,1.70162416]
[1751980877435,0.26336701,660.99,660.55,1.70162416]
[1751980877940,0.26336701,660.99,660.54,1.70162416]
[1751980878141,0.26336701,660.99,660.53,1.70162416]
[1751980884147,0.26336701,660.99,660.54,1.70162416]
[1751980885342,0.26336701,660.99,660.55,1.70162416]
[1751980886344,0.26336701,660.99,660.56,1.731]
[1751980887948,0.26336701,660.99,660.57,1.70162416]
[1751980890349,0.26336701,660.99,660.56,3.43262416]
[1751980890545,0.26336701,660.99,660.56,1.731]
[1751980897352,1.70062138,661.32,660.56,1.731]
[1751980897648,0.26330026,661.08,660.56,1.731]
[1751980902450,0.26330026,661.08,660.43,1.70162416]
[1751980904155,0.26330026,661.08,660.44,1.70162416]
[1751980904455,0.26330026,661.08,660.45,1.70162416]
[1751980905054,0.26330026,661.08,660.46,1.70162416]
[1751980905554,0.26330026,661.08,660.48,1.70162416]
[1751980906157,0.26330026,661.08,660.49,1.70162416]
[1751980906656,0.26330026,661.08,660.51,1.70162416]
[1751980906856,0.26330026,661.08,660.54,1.70162416]
[1751980908855,0.26330026,661.08,660.59,1.70162416]
[1751980909159,0.26330026,661.08,660.6,1.70162416]
[1751980909459,0.26330026,661.08,660.59,1.70162416]
[1751980911960,0.26330026,661.08,660.58,1.70162416]
[1751980912260,0.26330026,661.08,660.59,1.70162416]
[1751980912757,0.26330026,661.08,660.62,1.70162416]
[1751980916161,0.26330026,661.08,660.63,1.70162416]
[1751980916962,0.26330026,661.08,660.64,1.70162416]
[1751980917667,0.26330026,661.08,660.63,1.70162416]
[1751980921072,0.26330026,661.08,660.64,1.417]
[1751980922372,0.26330026,661.08,660.64,3.11862416]
[1751980924172,0.26330026,661.08,660.64,1.417]
[1751980927180,0.26330026,661.08,660.64,3.11862416]
[1751980927578,0.26330026,661.08,660.65,1.70162416]
[1751980929683,0.26330026,661.08,660.66,1.70162416]
[1751980929878,0.26330026,661.08,660.65,1.70162416]
[1751980930180,0.26330026,661.08,660.66,1.70162416]
[1751980931683,0.26330026,661.08,660.67,1.70162416]
[1751980933288,0.26330026,661.08,660.64,1.417]
[1751980933289,0.26330026,661.08,660.68,1.70162416]
[1751980933984,0.26330026,661.08,660.7,1.70162416]
[1751980934686,0.26330026,661.08,660.68,1.70162416]
[1751980938488,0.26330026,661.08,660.67,1.70162416]
[1751980938992,0.26330026,661.08,660.68,1.238]
[1751980939388,0.26330026,661.08,660.68,2.93962416]
[1751980941392,0.26330026,661.08,660.69,1.70162416]
[1751980944595,0.26330026,661.08,660.71,1.70162416]
[1751980945596,0.26330026,661.08,660.72,1.70162416]
[1751980948299,0.26330026,661.08,660.73,1.70162416]
[1751980951199,0.26330026,661.08,660.74,1.70162416]
[1751980951605,0.26330026,661.08,660.68,1.238]
[1751980955205,0.26330026,661.08,660.67,1.70162416]
[1751980955407,0.26330026,661.08,660.68,1.70162416]
[1751980956306,0.26330026,661.08,660.69,1.70162416]
[1751980957311,0.26330026,661.08,660.7,1.70162416]
[1751980957610,0.26330026,661.08,660.69,1.70162416]
[1751980957808,0.26330026,661.08,660.71,1.546]
[1751980963413,0.26330026,661.08,660.71,3.24762416]
[1751980966913,0.26330026,661.08,660.72,1.70162416]
[1751980970015,0.26330026,661.08,660.71,1.546]
[1751980970319,0.26330026,661.08,660.72,1.7016248]
[1751980971420,0.26330026,661.08,660.73,1.7016248]
[1751980972719,0.26330026,661.08,660.72,1.7016248]
[1751980974423,0.26330026,661.08,660.73,1.7016248]
[1751980976126,0.26330026,661.08,660.71,1.546]
[1751980998743,0.26330026,661.08,660.64,1.69890917]
[1751980999441,0.26330026,661.08,660.65,1.69890917]
[1751980999639,0.26330026,661.08,660.63,1.69890917]
[1751980999939,0.26330026,661.08,660.64,1.69890917]
[1751981001242,0.26330026,661.08,660.65,1.535]
[1751981006143,0.26330026,661.08,660.65,3.23390917]
[1751981007643,0.26330026,661.08,660.65,3.23365793]
[1751981008942,0.26330026,661.08,660.65,1.535]
[1751981029052,1.69926767,661.07,660.67,1.69865793]
[1751981029653,1.69926767,661.06,660.67,1.69865793]
[1751981031354,1.69926767,661.07,660.65,3.23365793]
[1751981031556,1.69926767,661.07,660.65,1.535]
[1751981032359,1.69926767,661.07,660.65,3.23365793]
[1751981033361,1.69926767,661.06,660.65,3.23365793]
[1751981034361,1.69926767,661.05,660.66,1.69865793]
[1751981035462,1.69926767,661.04,660.67,1.69865793]
[1751981036661,0.26330026,661.08,660.65,1.535]
[1751981036662,1.69926767,661.07,660.65,1.535]
[1751981044164,1.96256793,661.08,660.65,1.535]
[1751981046263,1.69926767,661.07,660.65,1.535]
[1751981048167,1.69926767,661.06,660.65,1.535]
[1751981048367,1.69926767,661.06,660.63,1.69865793]
[1751981048867,1.69926767,661.07,660.63,1.69865793]
[1751981049767,1.69926767,661.07,660.64,1.69865793]
[1751981051066,1.69926767,661.07,660.63,1.69865793]
[1751981051469,0.26330026,661.08,660.61,1.69865793]
[1751981051470,1.96256793,661.08,660.61,1.69865793]
[1751981051970,0.26330026,661.08,660.62,1.79]
[1751981052171,1.96256793,661.08,660.62,1.79]
[1751981052466,0.26330026,661.08,660.62,1.79]
[1751981052672,1.96256793,661.08,660.62,1.79]
[1751981054071,1.96256793,661.08,660.62,3.48865793]
[1751981055471,1.96256793,661.08,660.62,1.79]
[1751981056470,0.26330026,661.08,660.62,3.48865793]
[1751981058666,0.26330026,661.08,660.63,1.69865793]
[1751981059668,1.96256793,661.08,660.63,1.69865793]
[1751981059871,0.26330026,661.08,660.63,1.69865793]
[1751981060769,0.26330026,661.08,660.62,1.79]
[1751981060970,0.26330026,661.08,660.62,3.48865793]
[1751981061273,1.96256793,661.08,660.63,1.69865793]
[1751981061674,1.96256793,661.08,660.64,1.69865793]
[1751981062674,1.96256793,661.08,660.63,1.69865793]
[1751981064673,1.96256793,661.08,660.64,1.69865793]
[1751981065176,1.69926767,661.07,660.65,1.69865793]
[1751981067474,1.70201678,661.07,660.65,1.69991209]
[1751981069675,1.70201678,661.07,660.66,1.69991209]
[1751981069874,1.70201678,661.07,660.65,1.69991209]
[1751981070376,1.70201678,661.07,660.62,1.79]
[1751981070377,0.26330026,661.08,660.62,1.79]
[1751981070575,1.70201376,661.07,660.65,1.69990135]
[1751981070779,1.70201376,661.06,660.67,1.69990135]
[1751981072478,1.70201376,661.06,660.68,1.69990135]
[1751981072679,1.70201376,661.05,660.68,1.69990135]
[1751981072878,1.70201376,661.05,660.69,1.69990135]
[1751981073082,1.70201376,661.07,660.66,1.69990135]
[1751981073478,1.70201376,661.07,660.65,1.69990135]
[1751981073985,1.70201376,661.08,660.65,1.69990135]
[1751981074182,1.70201376,661.18,660.76,1.69990135]
[1751981074380,1.96530804,661.2,660.74,1.69990135]
[1751981075383,1.96530804,661.2,660.73,1.69990135]
[1751981076386,0.26329428,661.2,660.73,1.69752553]
[1751981076589,0.26329428,661.2,660.71,1.69752553]
[1751981077292,0.26329428,661.2,660.7,1.69752553]
[1751981078194,0.26329428,661.2,660.69,1.69752553]
[1751981079790,0.26329428,661.2,660.68,1.69752553]
[1751981080388,0.26329428,661.2,660.69,1.739]
[1751981083291,0.26329428,661.2,660.69,3.43538491]
[1751981083493,0.26329428,661.2,660.69,1.739]
[1751981096502,0.26329428,661.2,660.72,1.69638491]
[1751981097405,0.26329428,661.2,660.71,1.69638491]
[1751981100606,0.26329428,661.2,660.72,1.69638491]
[1751981101107,0.26329428,661.2,660.71,1.69638491]
[1751981101408,0.26329428,661.2,660.72,1.69638491]
[1751981102106,0.26329428,661.2,660.71,1.69638491]
[1751981105812,0.26329428,661.2,660.69,3.43538491]
[1751981106511,0.26329428,661.2,660.7,1.69638491]
[1751981107315,0.26329428,661.2,660.69,3.43538491]
[1751981108009,0.26329428,661.2,660.7,1.69638491]
[1751981108713,0.26329428,661.2,660.71,1.69638491]
[1751981109115,0.26329428,661.2,660.7,1.69638491]
[1751981110318,0.26329428,661.2,660.69,1.739]
[1751981111313,0.26329428,661.2,660.69,3.43538491]
[1751981111518,0.26329428,661.2,660.69,1.739]
[1751981112118,0.26329428,661.2,660.69,3.43538491]
[1751981115318,0.26329428,661.2,660.69,1.739]
[1751981115519,0.26329428,661.2,660.69,3.43538491]
[1751981116319,0.26329428,661.2,660.69,1.739]
[1751981126226,0.26329428,661.2,660.7,1.69638491]
[1751981126522,0.26329428,661.2,660.71,1.69638491]
[1751981128026,0.26329428,661.2,660.72,1.69638491]
[1751981129428,0.26329428,661.2,660.73,1.69638491]
[1751981130330,0.26329428,661.2,660.74,1.69638491]
[1751981130524,1.96238532,661.2,660.74,1.69638491]
[1751981130924,1.96238532,661.2,660.75,1.69638491]
[1751981131826,1.69909104,661.19,660.76,1.69638491]
[1751981132026,1.69909104,661.18,660.78,1.69638491]
[1751981132329,1.69909104,661.17,660.79,1.69638491]
[1751981133329,1.69909104,661.15,660.81,1.69638491]
[1751981138431,1.69909104,661.14,660.82,1.69638491]
[1751981143432,1.69909104,661.14,660.83,1.705]
[1751981147035,1.69909104,661.15,660.83,1.705]
[1751981154044,1.69909104,661.16,660.83,1.705]
[1751981154948,1.96238532,661.2,660.83,1.705]
[1751981156045,0.26329428,661.2,660.83,1.705]
[1751981162447,0.26329428,661.2,660.71,1.69638491]
[1751981164847,1.69909104,661.19,660.74,1.69638491]
[1751981165352,0.26329428,661.2,660.72,1.419]
[1751981167051,0.26329428,661.2,660.72,3.11538491]
[1751981167450,0.26329428,661.2,660.72,1.419]
[1751981170559,0.26329428,661.2,660.72,3.11538491]
[1751981172263,0.26329428,661.2,660.72,1.419]
[1751981172760,0.26329428,661.2,660.75,1.69638491]
[1751981173162,0.26329428,661.2,660.76,1.69638491]
[1751981174464,0.26329428,661.2,660.72,1.419]
[1751981174465,0.26329428,661.2,660.75,1.69638491]
[1751981175163,0.26329428,661.2,660.76,1.69638491]
[1751981175362,0.26329428,661.2,660.79,1.69638491]
[1751981175863,0.26329428,661.2,660.8,1.69638491]
[1751981176362,0.26329428,661.2,660.79,1.69638491]
[1751981177162,0.26329428,661.2,660.8,1.69638491]
[1751981177367,0.26329428,661.2,660.79,1.69638491]
[1751981179966,0.26329428,661.2,660.78,1.69638491]
[1751981183073,0.26329428,661.2,660.77,1.69638491]
[1751981184268,0.26329428,661.2,660.78,1.69638491]
[1751981184972,0.26329428,661.2,660.8,1.69638491]
[1751981186376,0.26329428,661.2,660.72,1.419]
[1751981186581,0.26329428,661.2,660.8,1.69592004]
[1751981186778,0.26329428,661.2,660.79,1.69592004]
[1751981187976,0.26329428,661.2,660.8,1.69592004]
[1751981189776,1.69893258,661.31,660.8,1.69592004]
[1751981189777,0.26323752,661.3,660.8,1.69592004]
[1751981191081,0.26323752,661.3,660.78,1.69592004]
[1751981192178,0.26323752,661.3,660.72,1.419]
[1751981192381,0.26323752,661.3,660.78,1.69582425]
[1751981192879,0.26323752,661.3,660.79,1.69582425]
[1751981195080,0.26323752,661.3,660.8,1.69582425]
[1751981195483,0.26323752,661.3,660.79,1.69582425]
[1751981196586,0.26323752,661.3,660.8,1.69582425]
[1751981199485,0.26323752,661.3,660.79,1.69582425]
[1751981199884,0.26323752,661.3,660.8,1.69582425]
[1751981200486,0.26323752,661.3,660.79,1.69582425]
[1751981205487,0.26323752,661.3,660.8,1.69582425]
[1751981206788,0.26323752,661.3,660.81,1.69582425]
[1751981207193,0.26323752,661.3,660.8,1.69582425]
[1751981207991,0.26323752,661.3,660.81,1.27]
[1751981210394,0.26323752,661.3,660.81,2.96582425]
[1751981210794,1.96207411,661.3,660.82,1.69582425]
[1751981213609,1.96207411,661.3,660.81,1.27]
[1751981213610,0.26323752,661.3,660.81,1.27]
[1751981216411,0.26323752,661.3,660.81,2.96582425]
[1751981217212,1.96207411,661.3,660.81,2.96582425]
[1751981218014,1.96207411,661.3,660.82,1.69582425]
[1751981218214,1.69883659,661.29,660.82,1.69582425]
[1751981221414,1.69883659,661.29,660.83,1.69582425]
[1751981221916,1.96207411,661.3,660.81,2.96582425]
[1751981222117,1.69883659,661.29,660.82,1.69582425]
[1751981222314,1.96207411,661.3,660.83,1.69582425]
[1751981223417,1.69883659,661.28,660.86,1.69582425]
[1751981223714,1.69883659,661.29,660.83,1.69582425]
[1751981224418,1.69883659,661.29,660.84,1.69582425]
[1751981225415,1.69883659,661.28,660.85,1.69582425]
[1751981227213,1.69883659,661.29,660.84,1.69582425]
[1751981228017,1.69883659,661.28,660.84,1.69582425]
[1751981229822,1.69883659,661.29,660.84,1.69582425]
[1751981230721,1.69883659,661.29,660.83,1.69582425]
[1751981230920,1.69883659,661.29,660.82,1.69582425]
[1751981231922,1.69883659,661.29,660.83,3.09382425]
[1751981233526,1.69883659,661.28,660.84,1.69582425]
[1751981234720,1.69883659,661.28,660.83,3.09382425]
[1751981236328,1.69883659,661.27,660.84,1.69582425]
[1751981236526,2.68771123,661.29,660.83,1.398]
[1751981236928,0.98887464,661.28,660.83,1.398]
[1751981237125,0.98887464,661.27,660.83,1.398]
[1751981237425,0.98887464,661.28,660.83,1.398]
[1751981238130,1.69883659,661.26,660.83,1.398]
[1751981238326,1.69883659,661.22,660.83,1.398]
[1751981239326,1.69883659,661.23,660.83,1.398]
[1751981241428,1.69883659,661.24,660.83,1.398]
[1751981242229,1.69883659,661.25,660.83,1.398]
[1751981243028,1.69883659,661.23,660.83,1.398]
[1751981243832,1.69883659,661.21,660.83,1.398]
[1751981244233,1.69883659,661.22,660.83,1.398]
[1751981247332,1.69964638,661.22,660.83,1.398]
[1751981247536,1.69964638,661.21,660.83,1.398]
[1751981249039,1.69964638,661.21,660.72,1.69693486]
[1751981250336,1.69964638,661.22,660.72,1.69693486]
[1751981250640,1.69964638,661.22,660.71,1.69693486]
[1751981251040,1.69964638,661.24,660.68,1.69693486]
[1751981252037,1.69964638,661.24,660.69,1.261]
[1751981252837,1.69964638,661.24,660.69,2.95793486]
[1751981254139,1.69964638,661.24,660.69,1.261]
[1751981255337,1.69964638,661.24,660.69,2.95793486]
[1751981256437,1.69964638,661.24,660.69,1.261]
[1751981256640,1.69964638,661.22,660.69,1.261]
[1751981260845,1.69964638,661.19,660.69,1.261]
[1751981261149,1.69964638,661.16,660.69,1.261]
[1751981261349,1.69964638,661.17,660.69,1.261]
[1751981263348,1.69964638,661.19,660.69,1.261]
[1751981264852,1.69964638,661.18,660.69,1.261]
[1751981265954,1.69964638,661.19,660.69,1.261]
[1751981266851,1.69964638,661.2,660.69,1.261]
[1751981267051,0.26323752,661.3,660.69,1.261]
[1751981267352,1.69787009,661.2,660.69,1.261]
[1751981269257,1.69787009,661.21,660.69,1.261]
[1751981271058,1.69787009,661.2,660.69,1.261]